Cogmind - Beta 10.1 @@@ ROGUE MODE // 2020.10.23 @ 19:02:59 Player: W_W Result: Destroyed by as-03276 with Assembled Heavy Rifle Performance ------------- Evolutions (0) 0 Regions Visited (3) 600 Robots Destroyed (53) 265 Value Destroyed (607) 607 Prototype IDs (5) 100 Alien Tech Used (0) 0 Bonus (300) 300 TOTAL SCORE: 1872 Bonus ------- Aligned with FarCom 300 Cogmind --------- Core Integrity 0/250 Matter 253/300 Energy 47/250 System Corruption 9% Temperature Cool (140) Movement Core (1200) Ox23 Location -10/Exiles Parts ------- > --- POWER (1) -------- Ion Engine > --- PROPULSION (2) --- (None) > --- UTILITY (2) ------ High-capacity Storage Unit High-capacity Storage Unit > --- WEAPON (2) ------- Light Assault Rifle > --- INVENTORY (20) --- Ion Engine Light Treads High-capacity Matter Pod (113) Sensor Array Sensor Array Signal Interpreter ECM Suite Medium Armor Plating Medium Armor Plating Medium Armor Plating Hacking Suite Firepult Light Cannon Grenade Launcher Rocket Launcher Mining Laser Mining Laser Peak State ------------ > --- POWER ------------ Light Ion Engine > --- PROPULSION ------- Light Treads > --- UTILITY ---------- Superbattery > --- WEAPON ----------- Firepult > --- INVENTORY -------- Medium Armor Plating Hacking Suite Rocket Launcher Mining Laser [Rating: 32] Favorites ----------- Power Light Ion Engine Engine Light Ion Engine Propulsion Light Treads Treads Light Treads Utility High-capacity Storage Unit Device Supersonic Drone Bay Storage High-capacity Storage Unit Weapon Assault Rifle Energy Gun EM Pulse Gun Energy Cannon Firepult Ballistic Gun Assault Rifle Launcher Grenade Launcher Special Weapon Mining Laser Build | -11 -10 -10 -10 ------- Run | Scr Mat Min Exi Slots Evolved . | . . . . Power . | . . . . Propulsion . | . . . . Utility . | . . . . Weapon . | . . . . Parts Attached 27 | 7 10 . 10 Power 4 | 1 1 . 2 Engine 4 | 1 1 . 2 Core . | . . . . Reactor . | . . . . Propulsion 4 | 2 1 . 1 Treads 4 | 2 1 . 1 Leg . | . . . . Wheel . | . . . . Hover . | . . . . Flight . | . . . . Utility 9 | 2 3 . 4 Device 1 | . . . 1 Storage 8 | 2 3 . 3 Processor . | . . . . Hackware . | . . . . Protection . | . . . . Artifact . | . . . . Weapon 10 | 2 5 . 3 Energy Gun 2 | . 1 . 1 Energy Cannon 1 | . . . 1 Ballistic Gun 5 | 2 2 . 1 Ballistic Cannon . | . . . . Launcher 1 | . 1 . . Special Weapon 1 | . 1 . . Impact Weapon . | . . . . Slashing Weapon . | . . . . Piercing Weapon . | . . . . Special Melee Weapon . | . . . . Unidentified Prototypes 3 | . . . 3 Parts Lost 6 | . 2 . 4 Power 2 | . . . 2 Propulsion 1 | . . . 1 Utility . | . . . . Weapon 3 | . 2 . 1 Highest Loss Streak 4 | . 2 . 4 Average Slot Usage (%) 86 | . 89 85 75 Engine 13 | . 14 14 13 Treads 17 | . 18 14 15 Storage 27 | . 28 28 24 Energy Gun 5 | . 3 14 7 Energy Cannon 1 | . . . 6 Ballistic Gun 15 | . 21 . . Launcher 4 | . 2 14 6 Naked Turns . | . . . . Heaviest Build 89 | 15 72 72 89 Greatest Support 40 | 40 40 20 40 Greatest Overweight (x) 4 | . 3 3 4 Average Overweight (x) 1 | . 1 3 2 Largest Inventory Capacity 20 | 8 20 20 20 Average Capacity 14 | 7 14 20 18 Most Carried 20 | 7 18 19 20 Average Carried 11 | 4 10 18 16 Final Capacity 20 | 8 20 20 20 Final Carried 19 | 7 18 19 18 Class Distribution -------------------- 52% | Hauler-Mutant 47% | Mutant Dominant Class ---------------- Hauler-Mutant | -10/Materials Hauler-Mutant | -10/Mines Hauler-Mutant | -10/Exiles Resources | -11 -10 -10 -10 ----------- Run | Scr Mat Min Exi Matter Collected 1677 | 538 1042 10 87 Remotely . | . . . . Salvage Created 1608 | 333 1197 . 78 Parts 111 | 33 78 . . Haulers Intercepted . | . . . . Recyclers Shooed 4 | . 4 . . Parts Field Recycled . | . . . . Retrieved Matter . | . . . . Parts Self-Destructed . | . . . . Prevented . | . . . . Kills | -11 -10 -10 -10 ------- Run | Scr Mat Min Exi Combat Hostiles Destroyed 27 | . 22 . 5 Guns 23 | . 21 . 2 Cannons 1 | . . . 1 AOE 2 | . 1 . 1 Classes Destroyed 9 | 3 5 . 1 Worker 7 | 4 3 . . Builder 1 | . 1 . . Tunneler 9 | 9 . . . Recycler 5 | 1 4 . . Operator 1 | . 1 . . Watcher 3 | . 3 . . Swarmer 14 | . 14 . . Grunt 8 | . 8 . . Assembled 5 | . . . 5 Best Kill Streak 6 | 3 6 . 5 Combat Bots Only 5 | . 5 . 5 Max Kills in Single Turn 2 | 1 2 . 2 Gunslinging 1 | . 1 . . Exploded 1 | . 1 . 1 Melee . | . . . . Uniques/NPCs Destroyed . | . . . . Combat | -11 -10 -10 -10 -------- Run | Scr Mat Min Exi Damage Taken 1387 | . 816 . 571 Core 253 | . 102 . 151 Absorbed by Shields . | . . . . Core Remaining (%) 100 | 100 . . . Volleys Fired 133 | 31 90 . 12 Largest 2 | 2 2 . 2 Hottest 250 | 40 100 . 250 Shots Fired 248 | 62 170 . 16 Gun 241 | 62 166 . 13 Cannon 3 | . . . 3 Launcher 2 | . 2 . . Special 2 | . 2 . . Kinetic 228 | 62 157 . 9 Thermal 5 | . 2 . 3 Explosive 2 | . 2 . . Electromagnetic 13 | . 9 . 4 Robot Hit Streak 8 | 5 8 . 3 Robot Miss Streak 5 | 5 3 . 2 Penetration Max . | . . . . Secondary Targets 6 | . 4 . 2 Max Gunslinging Chain 1 | . 1 . 1 Shots Hit Robots 133 | 32 94 . 7 Core Hits 74 | 15 48 . 11 Critical Hits 2 | 1 1 . . Critical Kills 1 | . 1 . . Critical Parts Destroyed 1 | 1 . . . Melee Attacks . | . . . . Impact . | . . . . Slashing . | . . . . Piercing . | . . . . Sneak Attacks . | . . . . Combat Hostiles . | . . . . Follow-up Attacks . | . . . . Damage Inflicted 1934 | 389 1317 . 228 Guns 1622 | 389 1164 . 69 Cannons 44 | . . . 44 Explosions 240 | . 125 . 115 Melee . | . . . . Ramming 28 | . 28 . . Kinetic 1468 | 389 1055 . 24 Thermal 214 | . 55 . 159 Explosive 70 | . 70 . . Electromagnetic 154 | . 109 . 45 Impact . | . . . . Slashing . | . . . . Piercing . | . . . . Highest Corruption 9 | . 4 4 9 Average Corruption 3 | . 3 4 4 Corruption Purged . | . . . . Effects 72 | . 47 12 13 Message Errors 23 | . 13 3 7 Matter Fused 16 | . 8 3 5 Heat Flow Errors 10 | . 9 1 . Energy Discharges 10 | . 7 3 . Parts Rejected 1 | . . . 1 Data Loss (minor) 6 | . 4 2 . Targeting Errors 4 | . 4 . . Weapon Failures 2 | . 2 . . Overload Shots . | . . . . Overflow Damage 11 | . . . 11 Projectiles 11 | . . . 11 Explosions . | . . . . Melee . | . . . . Knockbacks . | . . . . Impact . | . . . . Kinetic . | . . . . Secondary . | . . . . Self-Inflicted Damage 1 | . . . 1 Shots 1 | . . . 1 Rammed 3 | . 3 . . Targets Rammed 3 | . 3 . . Kicked . | . . . . Crushed . | . . . . Highest Temperature 440 | . 199 176 440 Average Temperature 108 | . 54 98 251 Received Heat Transfer 338 | . 258 . 80 Effects 5 | . . . 5 Shutdowns 1 | . . . 1 Matter Decay 2 | . . . 2 Damage (minor) 2 | . . . 2 Siege Activations . | . . . . Robots Corrupted . | . . . . Combat Hostiles . | . . . . Parts Fried . | . . . . Impact Corruptions . | . . . . Robots Melted 1 | . . . 1 Combat Hostiles 1 | . . . 1 Parts Melted . | . . . . Heat Transferred 1010 | . 50 . 960 Parts Sabotaged . | . . . . Parts Stolen . | . . . . Parts Stripped . | . . . . Power Chain Reactions 1 | . 1 . . Missiles Intercepted . | . . . . Alert | -11 -10 -10 -10 ------- Run | Scr Mat Min Exi Peak Influence 289 | 55 289 28 . Initial 28 | . 9 28 . Average 85 | 23 116 22 . Maximum Alert Level 1 | . 1 . . Low Security (%) 93 | 100 89 100 . Level 1 6 | . 10 . . Level 2 . | . . . . Level 3 . | . . . . Level 4 . | . . . . Level 5 . | . . . . High Security . | . . . . Max Security . | . . . . Squads Dispatched 3 | . 3 . . Investigation 2 | . 2 . . Extermination . | . . . . Reinforcement 1 | . 1 . . Assault . | . . . . Garrison . | . . . . Intercept . | . . . . Construction Impeded . | . . . . Haulers Reinforced . | . . . . Stealth | -11 -10 -10 -10 --------- Run | Scr Mat Min Exi Distress Signals 5 | . 5 . . Communications Jammed . | . . . . Distress Signals . | . . . . Times Spotted 39 | . 32 . 7 Peak Tracking Total 9 | . 5 . 9 Tactical Retreats . | . . . . Traps | -11 -10 -10 -10 ------- Run | Scr Mat Min Exi Traps Triggered 5 | . 5 . . Indirectly . | . . . . Trap Hack Attempts . | . . . . Triggered . | . . . . Disarmed . | . . . . Reprogrammed . | . . . . Reused . | . . . . Traps Extracted . | . . . . Installed . | . . . . Triggered . | . . . . Machines | -11 -10 -10 -10 ---------- Run | Scr Mat Min Exi Machines Disabled 1 | . . . 1 Max in Single Turn 1 | . . . 1 Machines Sabotaged . | . . . . Garrisons Compromised . | . . . . Overloaded Fab Kills . | . . . . Fab Network Shutdowns . | . . . . Hacking | -11 -10 -10 -10 --------- Run | Scr Mat Min Exi Machines Accessed 11 | . 10 . 1 Terminals 7 | . 7 . . Fabricators . | . . . . Repair Stations 1 | . 1 . . Recycling Units 2 | . 2 . . Scanalyzers . | . . . . Garrison Access . | . . . . Total Hacks 41 | . 32 . 9 Successful 29 | . 20 . 9 Failed 12 | . 12 . . Catastrophic . | . . . . Database Lockouts . | . . . . Manual 1 | . . . 1 Terminals 21 | . 21 . . Fabricators . | . . . . Repair Stations 7 | . 7 . . Recycling Units 4 | . 4 . . Scanalyzers . | . . . . Garrison Access . | . . . . Terminal Hacks 19 | . 10 . 9 Record 9 | . . . 9 Prototype ID Bank 1 | . 1 . . Branch Access Points 1 | . 1 . . Emergency Access Points 4 | . 4 . . Repair Station Index 1 | . 1 . . Alert Level 2 | . 2 . . Dispatch Records 1 | . 1 . . Fabricator Hacks . | . . . . Repair Station Hacks 6 | . 6 . . Scan Component 4 | . 4 . . Repair 2 | . 2 . . Recycling Unit Hacks 4 | . 4 . . Report Inventory 3 | . 3 . . Retrieve Components 1 | . 1 . . Scanalyzer . | . . . . Garrison Access Hacks . | . . . . Unauthorized Hacks . | . . . . Terminals . | . . . . Fabricators . | . . . . Repair Stations . | . . . . Recycling Units . | . . . . Scanalyzers . | . . . . Garrison Access . | . . . . Data Cores Recovered . | . . . . Used . | . . . . Hacking Detections 8 | . 8 . . Full Trace Events 3 | . 3 . . Feedback Events . | . . . . Feedback Blocked . | . . . . Robot Schematics Acquired . | . . . . Robots Built . | . . . . Matter . | . . . . Time . | . . . . Total Robot Build Rating . | . . . . Part Schematics Acquired . | . . . . Parts Built . | . . . . Matter . | . . . . Time . | . . . . Total Part Build Rating . | . . . . Parts Repaired 2 | . 2 . . Time 52 | . 52 . . Parts Recycled . | . . . . Recycled Matter . | . . . . Retrieved Matter . | . . . . Retrieved Components 9 | . 9 . . Parts Scanalyzed . | . . . . Part Schematics Acquired . | . . . . Parts Damaged . | . . . . Bothacking | -11 -10 -10 -10 ------------ Run | Scr Mat Min Exi Used RIF Installer . | . . . . Robots Hacked . | . . . . Non-combat . | . . . . Combat . | . . . . Robot Hacks Applied . | . . . . Relay Couplers Released . | . . . . Robots Rewired . | . . . . Allies Hacked . | . . . . Hacks Repelled . | . . . . Allies | -11 -10 -10 -10 -------- Run | Scr Mat Min Exi Total Allies 3 | . . 3 . Largest Group 3 | . . 3 2 Highest-Rated Group 40 | . . 40 32 Highest-Rated Ally 16 | . . 16 16 Total Orders 6 | . . . 6 STAY 2 | . . . 2 FOLLOW 2 | . . . 2 EXPLORE 1 | . . . 1 RETURN 1 | . . . 1 Ally Attacks 36 | . . 31 5 Total Damage 319 | . . 272 47 Kills 5 | . . 5 . Allies Corrupted . | . . . . Allies Melted . | . . . . Intel | -11 -10 -10 -10 ------- Run | Scr Mat Min Exi Robot Analysis Total . | . . . . Derelict Logs Recovered 1 | . . 1 . Drone Launches 1 | . . . 1 Drone Recoveries 1 | . . . 1 Exploration | -11 -10 -10 -10 ------------- Run | Scr Mat Min Exi Turns Passed 4245 | 704 2420 463 658 Spaces Moved 1924 | 373 1080 210 261 Core 2 | 2 . . . Treads 1922 | 371 1080 210 261 Legs . | . . . . Wheels . | . . . . Hover . | . . . . Flight . | . . . . Fastest Speed 50 | 50 160 220 180 Average Speed 190 | 159 189 220 216 Slowest Speed 240 | 160 220 220 240 Overloaded Moves . | . . . . Propulsion Burnouts . | . . . . Robots Hopped . | . . . . Cave-ins Triggered . | . . . . Exploration Rate (%) 60 | 10 99 43 90 Regions Visited 3 Branch Regions 2 Pre-discovered Areas . | . . . . Known Exits Taken 1 | . 1 . . Unknown Exits Taken 2 | 1 . 1 . Scrap Searched 1 | . . 1 . Spaces Dug 2 | . 2 . . Terrain Destroyed 37 | . 23 . 14 Melee . | . . . . Projectile 3 | . 2 . 1 AOE 34 | . 21 . 13 Terrain Rammed . | . . . . Walls Destroyed . | . . . . Machines Disabled . | . . . . Actions | -11 -10 -10 -10 --------- Run | Scr Mat Min Exi Total 2243 | 417 1272 212 342 Wait 90 | . 54 2 34 Move 1921 | 372 1079 209 261 Hop . | . . . . Pick Up 49 | 7 23 1 18 Fast Attach 13 | 7 1 . 5 Attach 6 | . 1 . 5 Detach . | . . . . Swap 8 | . 8 . . Drop 20 | . 13 . 7 Fire 133 | 31 90 . 12 Melee . | . . . . Ram . | . . . . Kick . | . . . . Crush 3 | . 3 . . Escape Stasis . | . . . . Rewire . | . . . . Trap . | . . . . Miscellaneous . | . . . . Route ------- -11/Scrapyard -10/Materials (discovered 4 exits: [*Mat x3] / *Min) -10/Mines -10/Exiles (discovered 2 exits: [*Min x2]) History --------- Turn | Location | Event 13 | -11/Scrapyard | Discovered new exit (range 15) 705 | -11/Scrapyard | Entered Materials 706 | -10/Materials | Build established: Mutant 1277 | -10/Materials | Discovered new exit (range 13) 1317 | -10/Materials | Identified exit to Mines 1600 | -10/Materials | Discovered new exit (range 8) 1720 | -10/Materials | Repaired Hcp. Storage Unit? 1898 | -10/Materials | Repaired Hcp. Storage Unit 2204 | -10/Materials | Build established: Hauler-Mutant 2779 | -10/Materials | Discovered new exit (range 15) 3125 | -10/Materials | Entered Mines 3168 | -10/Mines | Received a Rocket Launcher from a helpful Derelict 3222 | -10/Mines | Deemed a non-threat by the Exiles lab entrance 3222 | -10/Mines | Discovered new exit (range 5) 3339 | -10/Mines | Assisted by bots powering up and referring to "LRC-V3" 3373 | -10/Mines | Assembled infested the area 3588 | -10/Mines | Entered Exiles 3588 | -10/Exiles | Accompanied by 2 allies 3624 | -10/Exiles | Discovered new exit (range 15) 3685 | -10/Exiles | Met 8R-AWN 3718 | -10/Exiles | Met EX-HEX 3782 | -10/Exiles | Met EX-BIN 3813 | -10/Exiles | Aligned with FarCom system 3815 | -10/Exiles | Given EX-Vault access code 3890 | -10/Exiles | Opened EX-Vault 3900 | -10/Exiles | Found Prototype Energy Cannon 3900 | -10/Exiles | Identified Firepult 3946 | -10/Exiles | Found Prototype Storage 3946 | -10/Exiles | Identified Superbattery 3955 | -10/Exiles | Found Prototype Device 3955 | -10/Exiles | Identified Supersonic Drone Bay 3971 | -10/Exiles | Discovered new exit (range 57) 4187 | -10/Exiles | Attacked by the Exiles 4220 | -10/Exiles | Core integrity fell below 50% 4237 | -10/Exiles | Core integrity fell below 20% 4246 | -10/Exiles | Destroyed by as-03276 with Assembled Heavy Rifle Last Messages --------------- 04215_ Lgt. Treads destroyed. 04215_ Lgt. Ion Engine destroyed. 04215_ System corrupted by crushing effect (+5). 04218_ Overheating: Hcp. Storage Unit damaged (-288). 04220_ Acquired Firepult. 04222_ as-49778 destroyed. 04222_ Switching to secondary target: as-18681. 04227_ Overheating: Lgt. Assault Rifle damaged (-20). 04227_ System corrupted: Lgt. Treads rejected. 04228_ Power failure, Lgt. Ion Engine shutdown. 04228_ as-18681 destroyed. 04228_ Switching to secondary target: as-03276. 04229_ Lgt. Ion Engine destroyed. 04233_ EM Pulse Gun destroyed. 04236_ Overheating: Matter decay (-63). 04237_ Overheating: Matter decay (-38). 04242_ as-03276 misfires. 04244_ System corrupted: Matter fused (-8). 04244_ as-03276 IFF system glitched. 04244_ as-81448 destroyed. Map ----- +----------------------------------------------------+ | | | | | | | | | | | | | | | | | | | | | | | | | | | ???????????????????#########?????????????????????? | | ???????????????????# ! #?????????????????????? | | ???????????????????# #?????????????????????? | | ???????????????????# ! #?????????????????????? | | ???????????????????# X#?????????????????????? | | ???????????????????## ##?????????????????????? | | ???????????????????#X #??????????????????????? | | ???????????????????## #??????????????????????? | | ????????????????????# #??????????????????????? | | ????????????????????# #???#####??????????????? | | ????????????????????# #??"""""#??????????????? | | ????????????????????# ## """#??????????????? | | ????????????????????# %@ X""#??????????????? | | ????????????????????#= ## """#??????????????? | | ????????????######??#%= ;??"""""#??????????????? | | ????????????#""""""?#[ ???#####??????????????? | | ????????????#"""" ## %% #?????????????????????? | | ????????????#""X" ##?????????????????????? | | ????????????#" #??????????????????????? | | ????????????#" ## a#??????????????????????? | | ????????????#""""""?# ;?#########????????????? | | ????????????##"###??; ;##"""""""#????????????? | | ???????????? ?????? g ##"""""""#????????????? | | ???????????""??????# ###"""""""#????????????? | | ???????????????????# ###"" """"#????????????? | | ???????????????????# % """"#????????????? | | ???????????????????# """#????????????? | | ???????????????????# """#????????????? | | ???????????????????#" """#????????????? | | ????########???????#" """#????????????? | | ????# """#???????#" """##???????????? | | ????#"" """#???????## """""???????????? | | ????#"" #????????# """##???????????? | | ????#"" #????????#" "X" """""???????????? | | ????#"" "#????????#" """ # ???????????? | | ????# ""?????????#" """""""""#????????????? | | ?????"" "?????????##" ###########????????????? | +----------------------------------------------------+ Best States ------------- Heat Dissipation 25 Energy Generation 10 Energy Capacity 125 Matter Stores 300 Matter Capacity 300 Sight Range 16 Terrain Scan Density 10 Evasion (%) 40 Recoil Reduction 2 Item Schematics ----------------- None Robot Schematics ------------------ None Fabricated ------------ Nothing Alien Tech Used ----------------- None Achievements -------------- None Challenges ------------ None Game ------ Seed BiocellFrostInterpreter Manual? 0 Play Time 00:32:15 Cumulative 38.4 hours Start 2020.10.23 @ 18:30:05 End 2020.10.23 @ 19:02:59 Sessions 1 Manual Loads 0 Difficulty Rogue Special Mode None Game No. 37 Rogue 37 Adventurer 0 Explorer 0 Win Type - Total 0 Types 0/0/0/0/0/0/0/0/0 Lore% 25 Gallery% 25 Achievement% 23 Wizard Run 0 Options --------- ASCII 0 Keyboard 0 Movement Mouse Keybinds 0 Fullscreen 1 Font 18/SmallcapsGlow Map View 76x50 Tactical HUD 1 Map Filters NONE Filters NONE Steam 1 RUN: 3e48cb17-bdd9-408c-a3a6-f76e8024e03e